fUST/lending_fUST_20241117
["ID","MTS","AMOUNT","RATE_DAILY","PERIOD"]
[342404565,1731798640762,-2939.39999192,0.000179,2]
[342404566,1731798640774,-6.65892541,0.000179,2]
[342404567,1731798640784,-4564.83456925,0.000179,2]
[342404568,1731798640794,-4564.83456923,0.000179,2]
[342404569,1731798640815,-4564.83456923,0.000179,2]
[342404570,1731798640831,-4564.83456923,0.000179,2]
[342404571,1731798640840,-156.881762,0.000179,2]
[342404572,1731798640851,-150.112233,0.00018,2]
[342404573,1731798640860,-151.0,0.00018082,2]
[342404574,1731798640869,-1234.08584072,0.0001815,2]
[342404575,1731798640879,-207.0,0.0001819,2]
[342404576,1731798640888,-150.112233,0.000182,2]
[342404577,1731798640899,-501.098877,0.000183,2]
[342404578,1731798640916,-501.098877,0.000183,2]
[342404579,1731798640928,-258.192512,0.000183,2]
[342404580,1731798640937,-258.192512,0.000183,2]
[342404581,1731798640947,-150.112233,0.000183,2]
[342404582,1731798640956,-151.0,0.000183,2]
[342404583,1731798640966,-164.749067,0.000183,2]
[342404584,1731798640976,-151.0,0.00018356,2]
[342404585,1731798640985,-150.112233,0.000186,2]
[342404586,1731798640995,-26.75443764,0.000186,2]
[342404675,1731799128352,400.69793708,0.000258,60]
[342404676,1731799128382,0.30206292,0.000258,60]
[342404827,1731799832359,-200.879,0.00011,2]
[342404828,1731799832369,-300.0,0.00012499,2]
[342404829,1731799832379,-136.25099899,0.00012499,2]
[342404830,1731799832390,-163.74900101,0.00012499,2]
[342404831,1731799832400,-152.14,0.000125,2]
[342404832,1731799832410,-541.001,0.000125,2]
[342404833,1731799832419,-180.21999899,0.000125,2]
[342404834,1731799832430,-2205.78000101,0.000125,2]
[342404835,1731799832440,-1113.0,0.000125,2]
[342404836,1731799832450,-186.31208271,0.00013,2]
[342404837,1731799832459,-200.883,0.000131,2]
[342404838,1731799832469,-186.3120827,0.000135,2]
[342404839,1731799832479,-2773.51435398,0.00013665,2]
[342404840,1731799832488,-703.3702932,0.00013665,2]
[342404841,1731799832497,-2258.2203743,0.00013665,2]
[342404842,1731799832507,-420.0,0.00013714,2]
[342404843,1731799832516,-733.508971,0.00013806,2]
[342404844,1731799832526,-152.0,0.00013873,2]
[342404845,1731799832536,-277.31532,0.00013883,2]
[342404846,1731799832545,-859.3658,0.00013922,2]
[342404847,1731799832555,-400.0,0.00013973,2]
[342404848,1731799832564,-186.3120827,0.00014,2]
[342404849,1731799832575,-10465.7309803,0.0001405,2]
[342404850,1731799832584,-3111.64,0.000141,2]
[342404851,1731799832593,-12281.04978587,0.00014104,2]
[342404852,1731799832603,-859.3658,0.00014607,2]
[342404853,1731799832612,-587.0,0.00015047,2]
[342404854,1731799832625,-200.888,0.000152,2]
[342404855,1731799832635,-859.3658,0.00015292,2]
[342404856,1731799832644,-922.2286101,0.000154,2]
[342404857,1731799832654,-433.74,0.000155,2]
[342404858,1731799832663,-216.0,0.0001611,2]
[342404859,1731799832672,-314.24356809,0.00016333,2]
[342404860,1731799832682,-187.341,0.00016338,2]
[342404861,1731799832690,-194.81683115,0.00016338,2]
[342404862,1731799832700,-448.22598074,0.00016436,2]
[342404863,1731799832709,-500.0,0.00016436,2]
[342404864,1731799832719,-161.75816799,0.00016436,2]
[342404865,1731799832729,-500.0,0.00016436,2]
[342404866,1731799832739,-500.0,0.00016436,2]
[342404867,1731799832749,-500.0,0.00016436,2]
[342404868,1731799832758,-500.0,0.00016436,2]
[342404869,1731799832768,-500.0,0.00016436,2]
[342404870,1731799832779,-500.0,0.00016436,2]
[342404871,1731799832789,-500.0,0.00016436,2]
[342404872,1731799832798,-500.0,0.00016436,2]
[342404873,1731799832807,-500.0,0.00016436,2]
[342404874,1731799832817,-500.0,0.00016436,2]
[342404875,1731799832826,-300.61183886,0.00016436,2]
[342404876,1731799832835,-448.95594968,0.00016436,2]
[342404877,1731799832846,-500.0,0.00016436,2]
[342404878,1731799832856,-500.0,0.00016436,2]
[342404879,1731799832866,-500.0,0.00016436,2]
[342404880,1731799832876,-500.0,0.00016436,2]
[342404881,1731799832885,-500.0,0.00016436,2]
[342404882,1731799832895,-500.0,0.00016436,2]
[342404883,1731799832905,-500.0,0.00016436,2]
[342404884,1731799832915,-500.0,0.00016436,2]
[342404885,1731799832925,-500.0,0.00016436,2]
[342404886,1731799832935,-500.0,0.00016436,2]
[342404887,1731799832945,-500.0,0.00016436,2]
[342404888,1731799832954,-500.0,0.00016436,2]
[342404889,1731799832963,-500.0,0.00016436,2]
[342404890,1731799832972,-500.0,0.00016436,2]
[342404891,1731799832981,-500.0,0.00016436,2]
[342404892,1731799832991,-500.0,0.00016436,2]
[342404893,1731799833000,-500.0,0.00016436,2]
[342404894,1731799833010,-500.0,0.00016436,2]
[342404895,1731799833020,-500.0,0.00016436,2]
[342404896,1731799833030,-168.73028741,0.00016436,2]
[342404897,1731799833039,-191.37586841,0.00016436,2]
[342404898,1731799833048,-500.0,0.00016436,2]
[342404899,1731799833059,-500.0,0.00016436,2]
[342404900,1731799833068,-500.0,0.00016436,2]
[342404901,1731799833078,-500.0,0.00016436,2]
[342404902,1731799833087,-500.0,0.00016436,2]
[342404903,1731799833097,-500.0,0.00016436,2]
[342404904,1731799833106,-500.0,0.00016436,2]
[342404905,1731799833115,-500.0,0.00016436,2]
[342404906,1731799833124,-500.0,0.00016436,2]
[342404907,1731799833133,-499.99999999,0.00016436,2]
[342404908,1731799833143,-500.0,0.00016436,2]
[342404909,1731799833153,-534.27497183,0.00016436,2]
[342404910,1731799833164,-534.27497183,0.00016436,2]
[342404911,1731799833173,-574.00186687,0.00016436,2]
[342404912,1731799833183,-534.27497183,0.00016436,2]
[342404913,1731799833194,-534.27497183,0.00016436,2]
[342404914,1731799833204,-534.27497183,0.00016436,2]
[342404915,1731799833214,-534.27497183,0.00016436,2]
[342404916,1731799833224,-534.27497183,0.00016436,2]
[342404917,1731799833234,-534.27497183,0.00016436,2]
[342404918,1731799833244,-534.27497183,0.00016436,2]
[342404919,1731799833253,-534.27497183,0.00016436,2]
[342404920,1731799833263,-534.27497183,0.00016436,2]
[342404921,1731799833273,-534.27497183,0.00016436,2]
[342404922,1731799833284,-534.27497183,0.00016436,2]
[342404923,1731799833294,-534.27497183,0.00016436,2]
[342404924,1731799833304,-534.27497183,0.00016436,2]
[342404925,1731799833315,-534.27497183,0.00016436,2]
[342404926,1731799833325,-534.27497183,0.00016436,2]
[342404927,1731799833336,-534.27497183,0.00016436,2]
[342404928,1731799833346,-534.27497183,0.00016436,2]
[342404929,1731799833356,-534.27497183,0.00016436,2]
[342404930,1731799833366,-534.27497183,0.00016436,2]
[342404931,1731799833376,-534.27497183,0.00016436,2]
[342404932,1731799833387,-534.27497183,0.00016436,2]
[342404933,1731799833397,-534.27497183,0.00016436,2]
[342404934,1731799833407,-534.27497183,0.00016436,2]
[342404935,1731799833418,-534.27497183,0.00016436,2]
[342404936,1731799833428,-534.27497183,0.00016436,2]
[342404937,1731799833438,-534.27497183,0.00016436,2]
[342404938,1731799833447,-534.27497183,0.00016436,2]
[342404939,1731799833456,-534.27497183,0.00016436,2]
[342404940,1731799833467,-534.27497183,0.00016436,2]
[342404941,1731799833478,-534.27497183,0.00016436,2]
[342404942,1731799833488,-534.27497183,0.00016436,2]
[342404943,1731799833499,-534.27497183,0.00016436,2]
[342404944,1731799833510,-534.27497183,0.00016436,2]
[342404945,1731799833520,-534.27497183,0.00016436,2]
[342404946,1731799833533,-534.27497183,0.00016436,2]
[342404947,1731799833543,-534.27497183,0.00016436,2]
[342404948,1731799833554,-525.75754475,0.00016436,2]
[342404949,1731799833565,-525.75754475,0.00016436,2]
[342404950,1731799833576,-525.75754475,0.00016436,2]
[342404951,1731799833586,-525.75754475,0.00016436,2]
[342404952,1731799833596,-525.75754475,0.00016436,2]
[342404953,1731799833606,-525.75754475,0.00016436,2]
[342404954,1731799833616,-525.75754475,0.00016436,2]
[342404955,1731799833626,-525.75754475,0.00016436,2]
[342404956,1731799833636,-525.75754475,0.00016436,2]
[342404957,1731799833646,-525.75754475,0.00016436,2]
[342404958,1731799833656,-525.75754475,0.00016436,2]
[342404959,1731799833666,-525.75754475,0.00016436,2]
[342404960,1731799833676,-525.75754475,0.00016436,2]
[342404961,1731799833685,-525.75754475,0.00016436,2]
[342404962,1731799833695,-525.75754475,0.00016436,2]
[342404963,1731799833704,-525.75754475,0.00016436,2]
[342404964,1731799833714,-525.75754475,0.00016436,2]
[342404965,1731799833724,-525.75754475,0.00016436,2]
[342404966,1731799833734,-525.75754475,0.00016436,2]
[342404967,1731799833743,-525.75754475,0.00016436,2]
[342404968,1731799833753,-525.75754475,0.00016436,2]
[342404969,1731799833763,-525.75754475,0.00016436,2]
[342404970,1731799833773,-525.75754475,0.00016436,2]
[342404971,1731799833786,-35021.41931866,0.00016437,2]
[342404972,1731799833795,-500.0,0.000165,2]
[342404973,1731799833805,-823.0,0.0001651,2]
[342404974,1731799833815,-922.2286101,0.000169,2]
[342404975,1731799833825,-314.24356807,0.00016975,2]
[342404976,1731799833836,-261.0,0.0001722,2]
[342404977,1731799833846,-200.841,0.000173,2]
[342404978,1731799833857,-314.24356807,0.00017617,2]
[342404979,1731799833868,-500.0,0.0001775,2]
[342404980,1731799833878,-500.0,0.0001775,2]
[342404981,1731799833887,-289.292104,0.000179,2]
[342404982,1731799833897,-1152.0,0.00018116,2]
[342404983,1731799833908,-150.112233,0.000182,2]
[342404984,1731799833918,-314.24356807,0.00018258,2]
[342404985,1731799833928,-8179.61963999,0.00018272,2]
[342404986,1731799833941,-615.0,0.000184,2]
[342404987,1731799833950,-922.2286101,0.000184,2]
[342404988,1731799833960,-465.50789175,0.0001855,2]
[342404989,1731799833970,-150.112233,0.000186,2]
[342404990,1731799833980,-150.112233,0.000186,2]
[342404991,1731799833990,-151.0,0.0001863,2]
[342404992,1731799833999,-16451.21446493,0.000189,2]
[342404993,1731799834009,-150.112233,0.000189,2]
[342404994,1731799834019,-150.112233,0.000189,2]
[342404995,1731799834031,-150.112233,0.000189,2]
[342404996,1731799834041,-1000.0,0.000189,2]
[342404997,1731799834051,-314.24356807,0.000189,2]
[342404998,1731799834061,-151.0,0.00018904,2]
[342404999,1731799834071,-172.6912217,0.00018925,2]
[342405000,1731799834081,-1175.1970663,0.00018925,2]
[342405001,1731799834091,-500.0,0.00018949,4]
[342405002,1731799834100,-505.06690884,0.00018949,4]
[342405003,1731799834110,-500.0,0.00018949,4]
[342405004,1731799834120,-205.67968663,0.00018949,4]
[342405005,1731799834130,-383.99292387,0.00018989,2]
[342405006,1731799834140,-352.14962678,0.00018989,2]
[342405007,1731799834150,-480.48119426,0.00018989,2]
[342405008,1731799834160,-404.94135643,0.00018989,2]
[342405009,1731799834170,-70742.2673284,0.0001899,10]
[342405010,1731799834180,-400.0,0.00019,4]
[342405011,1731799834190,-142893.17283078,0.00019,2]
[342405012,1731799834199,-151.0,0.00019,2]
[342405013,1731799834210,-151.0,0.00019,2]
[342405014,1731799834219,-501.098877,0.00019,2]
[342405015,1731799834229,-501.098877,0.00019,2]
[342405016,1731799834239,-258.192512,0.00019,2]
[342405017,1731799834249,-258.192502,0.00019,2]
[342405018,1731799834259,-150.112233,0.00019,2]
[342405019,1731799834268,-150.112235,0.00019,2]
[342405020,1731799834282,-150.112233,0.000191,2]
[342405021,1731799834293,-151.0,0.00019178,2]
[342405022,1731799834303,-151.0,0.00019178,2]
[342405023,1731799834313,-235.090782,0.00019178,2]
[342405024,1731799834322,-160.973787,0.00019178,2]
[342405025,1731799834331,-150.112233,0.000192,2]
[342405026,1731799834341,-150.112233,0.000193,2]
[342405027,1731799834351,-150.112233,0.000193,2]
[342405028,1731799834361,-150.112233,0.000193,2]
[342405029,1731799834371,-150.112233,0.000194,2]
[342405030,1731799834380,-200.84,0.000194,2]
[342405031,1731799834389,-151.0,0.00019452,2]
[342405032,1731799834398,-151.0,0.00019452,2]
[342405033,1731799834408,-465.02539459,0.00019477,2]
[342405034,1731799834418,-150.112233,0.000195,2]
[342405035,1731799834427,-273.470028,0.000195,2]
[342405036,1731799834437,-150.02,0.00019526,2]
[342405037,1731799834447,-150.112233,0.000196,2]
[342405038,1731799834456,-150.112233,0.000196,2]
[342405039,1731799834466,-150.112233,0.000196,2]
[342405040,1731799834476,-150.112233,0.000196,2]
[342405041,1731799834486,-150.11228,0.000197,2]
[342405042,1731799834497,-150.112233,0.000197,2]
[342405043,1731799834507,-150.112233,0.000197,2]
[342405044,1731799834516,-150.112233,0.000197,2]
[342405045,1731799834529,-1613.0,0.00019877,2]
[342405046,1731799834540,-5002.81431236,0.000199,2]
[342405047,1731799834549,-150.112233,0.000199,2]
[342405048,1731799834559,-153.73,0.000199,31]
[342405049,1731799834568,-153.73,0.000199,31]
[342405050,1731799834579,-153.73,0.000199,31]
[342405051,1731799834588,-153.73,0.000199,31]
[342405052,1731799834597,-153.73,0.000199,31]
[342405053,1731799834607,-153.73,0.000199,31]
[342405054,1731799834616,-153.73,0.000199,31]
[342405055,1731799834625,-153.73,0.000199,31]
[342405056,1731799834635,-153.73,0.000199,31]
[342405057,1731799834645,-153.73,0.000199,31]
[342405058,1731799834654,-153.73,0.000199,31]
[342405059,1731799834663,-153.73,0.000199,31]
[342405060,1731799834673,-728.06994229,0.000199,2]
[342405061,1731799834683,-922.2286101,0.000199,2]
[342405062,1731799834692,-150.112233,0.000199,2]
[342405063,1731799834702,-500.0,0.00019901,2]
[342405064,1731799834711,-500.0,0.00019973,2]
[342405065,1731799834721,-500.0,0.00019973,2]
[342405066,1731799834730,-500.0,0.00019973,2]
[342405067,1731799834740,-138065.42179911,0.0001999,2]
[342405068,1731799834755,-3704.60810266,0.0001999,2]
[342405069,1731799834767,-3730.49771861,0.0001999,2]
[342405070,1731799834796,-2638.03356978,0.0001999,2]
[342405106,1731799838076,-36887.28357845,0.0001999,2]
[342405111,1731799838241,-9062.2,0.0001999,2]
[342405112,1731799838303,-2313.38808845,0.0001999,2]
[342405118,1731799839830,-1860.0001,0.0001999,2]
[342405119,1731799839843,-1834.39935768,0.0001999,2]
[342405120,1731799839855,-71387.41070395,0.0001999,2]
[342405126,1731799843268,-2428.86519463,0.0001999,2]
[342405127,1731799843336,-11022.72715713,0.0001999,2]
[342405128,1731799843349,-9598.16462955,0.0001999,2]
[342405129,1731799843358,-11406.23923512,0.0002,2]
[342405130,1731799843370,-6629.27828388,0.0002,2]
[342405248,1731801032123,-179.761,0.00010566,2]
[342405249,1731801032133,-187.386,0.00011,2]
[342405251,1731801032143,-187.338,0.000131,2]
[342405253,1731801032152,-175.053,0.000134,2]
[342405254,1731801032162,-400.0,0.00013973,2]
[342405255,1731801032172,-2800.48,0.000142,2]
[342405256,1731801032181,-501.963685,0.00014824,2]
[342405257,1731801032191,-300.0,0.00014852,2]
[342405258,1731801032200,-7055.15893189,0.00014853,2]
[342405259,1731801032212,-2632.88887826,0.00014853,2]
[342405261,1731801032224,-280.68310545,0.00014853,2]
[342405263,1731801032240,-250.0,0.00014855,2]
[342405264,1731801032464,-191.91626455,0.00014886,2]
[342405265,1731801032481,-672.76505525,0.00014886,2]
[342405266,1731801032491,-1007.3167114,0.00014985,2]
[342405267,1731801032501,-187.419,0.000152,2]
[342405268,1731801032510,-849.8162796,0.00015665,2]
[342405269,1731801032520,-941.754733,0.00015683,2]
[342405270,1731801032529,-941.754733,0.00016368,2]
[342405271,1731801032541,-941.754733,0.00017053,2]
[342405272,1731801032552,-187.387,0.000173,2]
[342405273,1731801032562,-185.91462714,0.00018414,2]
[342405274,1731801032571,-185.858,0.00018735,2]
[342405275,1731801032581,-223.336242,0.00019178,2]
[342405276,1731801032591,-187.39,0.000194,2]
[342405277,1731801032601,-615.0,0.000194,2]
[342405278,1731801032612,-796.07883691,0.00019509,3]
[342405279,1731801032622,-500.0,0.00019509,3]
[342405280,1731801032632,-500.0,0.00019509,3]
[342405281,1731801032642,-1039.0,0.00019509,3]
[342405282,1731801032651,-1039.0,0.00019509,3]
[342405283,1731801032660,-1039.0,0.00019509,3]
[342405284,1731801032670,-1039.0,0.00019509,3]
[342405285,1731801032681,-1039.0,0.00019509,3]
[342405286,1731801032690,-1039.0,0.00019509,3]
[342405287,1731801032700,-1039.0,0.00019509,3]
[342405288,1731801032710,-1039.0,0.00019509,3]
[342405289,1731801032719,-1039.0,0.00019509,3]
[342405290,1731801032729,-1039.0,0.00019509,3]
[342405291,1731801032738,-1039.0,0.00019509,3]
[342405292,1731801032747,-1039.0,0.00019509,3]
[342405293,1731801032757,-1039.0,0.00019509,3]
[342405294,1731801032767,-1039.0,0.00019509,3]
[342405295,1731801032776,-1039.0,0.00019509,3]
[342405296,1731801032788,-1039.0,0.00019509,3]
[342405297,1731801032797,-1039.0,0.00019509,3]
[342405298,1731801032807,-1039.0,0.00019509,3]
[342405299,1731801032817,-1039.0,0.00019509,3]
[342405300,1731801032826,-1039.0,0.00019509,3]
[342405301,1731801032836,-204.82516867,0.000198,2]
[342405302,1731801032846,-461.11430505,0.000198,2]
[342405303,1731801032855,-8179.61964,0.00019826,2]
[342405304,1731801032865,-11321.63396327,0.000199,2]
[342405305,1731801032875,-1000.0,0.000199,2]
[342405306,1731801032884,-153.75,0.000199,31]
[342405307,1731801032893,-153.75,0.000199,31]
[342405308,1731801032903,-153.75,0.000199,31]
[342405309,1731801032912,-153.75,0.000199,31]
[342405310,1731801032922,-153.75,0.000199,31]
[342405311,1731801032931,-153.75,0.000199,31]
[342405312,1731801032940,-153.75,0.000199,31]
[342405313,1731801032950,-153.75,0.000199,31]
[342405314,1731801032959,-153.75,0.000199,31]
[342405315,1731801032969,-153.75,0.000199,31]
[342405316,1731801032979,-153.75,0.000199,31]
[342405317,1731801032989,-153.75,0.000199,31]
[342405318,1731801032999,-153.75,0.000199,31]
[342405319,1731801033008,-621.30664887,0.000199,2]
[342405320,1731801033017,-655.22,0.0001999,3]
[342405321,1731801033026,-1175.19706629,0.00019999,2]
[342405322,1731801033038,-500.0,0.00019999,2]
[342405323,1731801033047,-333.83065642,0.00019999,2]
[342405324,1731801033057,-315.10762727,0.00019999,2]
[342405325,1731801033066,-311.97421664,0.00019999,2]
[342405326,1731801033075,-382.26457,0.00019999,2]
[342405327,1731801033085,-500.0,0.00019999,2]
[342405328,1731801033094,-500.0,0.00019999,2]
[342405329,1731801033103,-500.0,0.00019999,2]
[342405330,1731801033113,-500.0,0.00019999,2]
[342405331,1731801033122,-641.8861791,0.00019999,2]
[342405332,1731801033131,-500.0,0.00019999,2]
[342405333,1731801033140,-208.41009366,0.00019999,2]
[342405334,1731801033149,-500.0,0.00019999,2]
[342405335,1731801033159,-292.77531584,0.00019999,2]
[342405336,1731801033169,-500.0,0.00019999,2]
[342405337,1731801033178,-500.0,0.00019999,2]
[342405338,1731801033188,-500.0,0.00019999,2]
[342405339,1731801033198,-500.0,0.00019999,2]
[342405340,1731801033208,-500.0,0.00019999,2]
[342405341,1731801033217,-500.0,0.00019999,2]
[342405342,1731801033227,-500.0,0.00019999,2]
[342405343,1731801033241,-500.0,0.00019999,2]
[342405344,1731801033251,-500.0,0.00019999,2]
[342405345,1731801033260,-500.0,0.00019999,2]
[342405346,1731801033270,-500.0,0.00019999,2]
[342405347,1731801033282,-500.0,0.00019999,2]
[342405348,1731801033291,-500.0,0.00019999,2]
[342405349,1731801033300,-434.34851739,0.00019999,2]
[342405350,1731801033312,-500.0,0.00019999,2]
[342405351,1731801033321,-500.0,0.00019999,2]
[342405352,1731801033331,-500.0,0.00019999,2]
[342405353,1731801033340,-500.0,0.00019999,2]
[342405354,1731801033349,-500.0,0.00019999,2]
[342405355,1731801033359,-500.0,0.00019999,2]
[342405356,1731801033368,-500.0,0.00019999,2]
[342405357,1731801033378,-500.0,0.00019999,2]
[342405358,1731801033388,-500.0,0.00019999,2]
[342405359,1731801033397,-500.0,0.00019999,2]
[342405360,1731801033407,-500.0,0.00019999,2]
[342405361,1731801033416,-500.0,0.00019999,2]
[342405362,1731801033425,-500.0,0.00019999,2]
[342405363,1731801033435,-500.0,0.00019999,2]
[342405364,1731801033445,-500.0,0.00019999,2]
[342405365,1731801033455,-500.0,0.00019999,2]
[342405366,1731801033465,-500.0,0.00019999,2]
[342405367,1731801033475,-500.0,0.00019999,2]
[342405369,1731801033485,-500.0,0.00019999,2]
[342405370,1731801033494,-500.0,0.00019999,2]
[342405371,1731801033504,-179.08603564,0.00019999,2]
[342405373,1731801033514,-500.0,0.00019999,2]
[342405374,1731801033524,-500.0,0.00019999,2]
[342405376,1731801033534,-500.0,0.00019999,2]
[342405377,1731801033544,-500.0,0.00019999,2]
[342405378,1731801033555,-500.0,0.00019999,2]
[342405380,1731801033565,-500.0,0.00019999,2]
[342405381,1731801033575,-3322.04723119,0.0002,2]
[342405382,1731801033585,-514.0,0.0002,2]
[342405383,1731801033595,-500.0,0.0002,2]
[342405384,1731801033605,-400.0,0.0002,4]
[342405385,1731801033615,-515.0,0.0002,2]
[342405386,1731801033625,-260.91,0.0002,2]
[342405387,1731801033635,-10176.46826104,0.0002,2]
[342405388,1731801033645,-4343.58773626,0.0002,2]
[342405389,1731801033655,-351.10396694,0.0002,2]
[342405390,1731801033665,-191.53,0.0002,2]
[342405391,1731801033675,-7015.625,0.0002,2]
[342405392,1731801033685,-5084.48796341,0.0002,2]
[342405393,1731801033694,-500.28,0.0002,2]
[342405394,1731801033703,-41904.06388369,0.0002,2]
[342405446,1731801038132,-161539.75792326,0.0002,2]
[342405452,1731801038207,-3352.61334146,0.0002,2]
[342405460,1731801038278,-864.68131979,0.0002,2]
[342405468,1731801038348,-3050.000005,0.0002,2]
[342405473,1731801038360,-13109.5252996,0.0002,2]
[342405528,1731801040031,-306.316,0.0002,2]
[342405529,1731801040043,-328.52413138,0.0002,2]
[342405530,1731801040055,-1000.0,0.0002,2]
[342405531,1731801040067,-401.34212999,0.0002,2]
[342405532,1731801040080,-1814.0001,0.0002,2]
[342405533,1731801040092,-111598.35122935,0.0002,2]
[342405534,1731801040102,-341.0,0.0002,2]
[342405535,1731801040112,-14134.0,0.0002,2]
[342405536,1731801040121,-167.52016859,0.0002,2]
[342405537,1731801040131,-2793.0,0.0002,2]
[342405538,1731801040141,-151.0,0.0002,2]
[342405539,1731801040151,-186.25,0.0002,2]
[342405540,1731801040162,-151.0,0.0002,2]
[342405541,1731801040171,-151.0,0.0002,2]
[342405542,1731801040181,-151.96496995,0.0002,7]
[342405543,1731801040190,-3200.0,0.0002,2]
[342405544,1731801040200,-151.0,0.0002,2]
[342405545,1731801040209,-500.0,0.0002,2]
[342405546,1731801040219,-151.53333552,0.0002,2]
[342405547,1731801040228,-655.26294807,0.00020277,2]
[342405548,1731801040240,-500.0,0.00020373,2]
[342405549,1731801040250,-70997.26099688,0.00020377,2]
[342405561,1731801043334,-9848.05642967,0.00020377,2]
[342405562,1731801043345,-1527.5,0.00020377,2]
[342405563,1731801043356,-11266.25723297,0.00020377,2]
[342405586,1731801046218,-500.0,0.00020377,2]
[342405587,1731801046580,-610.0,0.00020377,2]
[342405596,1731801299815,499.08762355,0.00026,60]
[342405613,1731801868724,160.0,0.00025999,60]
[342405617,1731801949234,350.0,0.00025999,60]
[342405621,1731802041100,157.621,0.000234,60]
[342405637,1731802149609,1514.0,0.00026,60]
[342405724,1731802232154,-370.239,0.00010257,2]
[342405726,1731802232164,-204.512,0.000134,2]
[342405729,1731802232174,-250.0,0.000134,2]
[342405731,1731802232184,-250.0,0.00013438,2]
[342405733,1731802232194,-400.0,0.00013973,2]
[342405735,1731802232203,-2520.43,0.000142,2]
[342405737,1731802232214,-250.981842,0.00016537,2]
[342405739,1731802232224,-895.5694363,0.00016785,2]
[342405741,1731802232234,-10246.6589446,0.00017103,2]
[342405743,1731802232243,-157.626,0.0001886,2]
[342405745,1731802232253,-160.973787,0.00019178,2]
[342405747,1731802232263,-465.02666053,0.00019428,2]
[342405749,1731802232273,-615.0,0.000198,2]
[342405751,1731802232283,-300.0,0.00019999,2]
[342405753,1731802232294,-300.0,0.00019999,2]
[342405755,1731802232304,-528.0,0.0002,2]
[342405757,1731802232313,-2592.0,0.0002,2]
[342405759,1731802232323,-153.77,0.000203,31]
[342405761,1731802232333,-153.77,0.000203,31]
[342405763,1731802232342,-153.77,0.000203,31]
[342405765,1731802232351,-153.77,0.000203,31]
[342405767,1731802232360,-153.77,0.000203,31]
[342405769,1731802232370,-153.77,0.000203,31]
[342405771,1731802232379,-153.77,0.000203,31]
[342405773,1731802232388,-153.77,0.000203,31]
[342405775,1731802232396,-629.19731816,0.00020377,2]
[342405777,1731802232406,-1897.11506915,0.00020377,2]
[342405780,1731802232421,-400.57155,0.00020377,2]
[342405782,1731802232433,-1455.71643624,0.00020377,2]
[342405784,1731802232444,-7325.46758229,0.00020377,2]
[342405821,1731802238177,-485.29616289,0.00020173,2]
[342405822,1731802238188,-8127.06106903,0.00020377,2]
[342405834,1731802240021,-1767.9997,0.00020377,2]
[342405835,1731802240033,-2016.33430756,0.00020377,2]
[342405836,1731802240076,-1051.73982211,0.00020377,2]
[342405847,1731802243191,-495.0,0.00020377,2]
[342405848,1731802243245,-6345.32459791,0.00020377,2]
[342405849,1731802243258,-2300.0,0.00020377,2]
[342405866,1731802246092,-339.71266514,0.00020377,2]
[342405867,1731802246103,-581.16554434,0.00020377,2]
[342405872,1731803018652,2000.0,0.00026,60]
[342405873,1731803043753,260.375,0.00025999,60]
[342405876,1731803218093,1398.17477831,0.00025999,60]
[342405879,1731803325986,157.57,0.000247,60]
[342405881,1731803328839,150.0,0.0002102,62]